[Event "*** Titled Tuesday Blitz"]
[Site "Chess.com"]
[Date "2020.04.28"]
[Round "2"]
[White "pichonazo"]
[Black "semchik73"]
[Result "0-1"]
[WhiteElo "2402"]
[BlackElo "2235"]
[TimeControl "180+1"]
[EndTime "10:15:16 PDT"]
[Termination "semchik73 won by resignation"]

1. e4 {[%clk 0:03:00.9]} 1... Nf6 {[%clk 0:02:59.3]} 2. e5 {[%clk 0:03:00.2]}
2... Nd5 {[%clk 0:02:59.4]} 3. d4 {[%clk 0:03:00.9]} 3... d6 {[%clk 0:02:59.5]}
4. Nf3 {[%clk 0:03:00.2]} 4... Bg4 {[%clk 0:02:59.7]} 5. Be2 {[%clk 0:02:59.4]}
5... c6 {[%clk 0:02:59.8]} 6. O-O {[%clk 0:02:57.9]} 6... Bxf3 {[%clk
0:02:59.8]} 7. Bxf3 {[%clk 0:02:57.7]} 7... dxe5 {[%clk 0:03:00.4]} 8. dxe5
{[%clk 0:02:57.9]} 8... e6 {[%clk 0:03:00.9]} 9. Qe2 {[%clk 0:02:57.7]} 9... Nd7
{[%clk 0:02:59.9]} 10. Nd2 {[%clk 0:02:56.9]} 10... Qc7 {[%clk 0:02:56.9]} 11.
Nc4 {[%clk 0:02:55.3]} 11... b5 {[%clk 0:02:42.4]} 12. Nd6+ {[%clk 0:02:49.4]}
12... Bxd6 {[%clk 0:02:41.7]} 13. exd6 {[%clk 0:02:49]} 13... Qxd6 {[%clk
0:02:42.2]} 14. a4 {[%clk 0:02:37.4]} 14... b4 {[%clk 0:02:35.9]} 15. Rd1 {[%clk
0:02:24.3]} 15... O-O {[%clk 0:02:34.4]} 16. Qe4 {[%clk 0:02:19.6]} 16... N7f6
{[%clk 0:02:29.5]} 17. Qh4 {[%clk 0:02:17.1]} 17... Qe5 {[%clk 0:02:20.3]} 18.
a5 {[%clk 0:02:10.5]} 18... Rad8 {[%clk 0:02:10.7]} 19. Qc4 {[%clk 0:02:03.6]}
19... Rd6 {[%clk 0:01:36]} 20. c3 {[%clk 0:02:00.8]} 20... bxc3 {[%clk
0:01:34.2]} 21. bxc3 {[%clk 0:02:00.4]} 21... Rfd8 {[%clk 0:01:32.1]} 22. Ba3
{[%clk 0:01:58.1]} 22... R6d7 {[%clk 0:01:25.2]} 23. Qxc6 {[%clk 0:01:54.4]}
23... Nxc3 {[%clk 0:01:06.1]} 24. Bb2 {[%clk 0:01:34.6]} 24... Rxd1+ {[%clk
0:00:59.2]} 0-1

[Event "*** Titled Tuesday Blitz"]
[Site "Chess.com"]
[Date "2020.04.28"]
[Round "2"]
[White "IvanRadivojevic"]
[Black "CMFernandez"]
[Result "1-0"]
[WhiteElo "2473"]
[BlackElo "2069"]
[TimeControl "180+1"]
[EndTime "10:15:28 PDT"]
[Termination "IvanRadivojevic won by resignation"]

1. e4 {[%clk 0:03:00]} 1... c5 {[%clk 0:02:59.2]} 2. Nc3 {[%clk 0:02:59.8]} 2...
g6 {[%clk 0:02:57.9]} 3. f4 {[%clk 0:03:00.1]} 3... Bg7 {[%clk 0:02:57.8]} 4.
Nf3 {[%clk 0:03:00.7]} 4... e6 {[%clk 0:02:58.2]} 5. e5 {[%clk 0:02:59.3]} 5...
Ne7 {[%clk 0:02:58.6]} 6. Ne4 {[%clk 0:02:58.6]} 6... O-O {[%clk 0:02:57.8]} 7.
Nxc5 {[%clk 0:02:58.5]} 7... Nbc6 {[%clk 0:02:54.9]} 8. d4 {[%clk 0:02:56.7]}
8... Nf5 {[%clk 0:02:54.2]} 9. c3 {[%clk 0:02:55.6]} 9... d6 {[%clk 0:02:53.5]}
10. Ne4 {[%clk 0:02:54.4]} 10... dxe5 {[%clk 0:02:48.9]} 11. fxe5 {[%clk
0:02:55.3]} 11... h5 {[%clk 0:02:46.2]} 12. Bg5 {[%clk 0:02:54.8]} 12... Qa5
{[%clk 0:02:45.3]} 13. Nf6+ {[%clk 0:02:51.2]} 13... Kh8 {[%clk 0:02:44.1]} 14.
Bd3 {[%clk 0:02:39.8]} 14... Nfxd4 {[%clk 0:02:38.2]} 15. Nxd4 {[%clk
0:02:36.5]} 15... Nxd4 {[%clk 0:02:38.2]} 16. Qd2 {[%clk 0:02:22.9]} 16... Qxe5+
{[%clk 0:02:35.8]} 17. Ne4 {[%clk 0:02:20.8]} 17... Nf5 {[%clk 0:02:31.2]} 18.
O-O-O {[%clk 0:02:16.8]} 18... a5 {[%clk 0:02:22.2]} 19. h3 {[%clk 0:02:15.8]}
19... Ng3 {[%clk 0:01:52]} 20. Nxg3 {[%clk 0:02:12.1]} 20... Qxg3 {[%clk
0:01:52]} 21. Bf4 {[%clk 0:02:12.4]} 21... Qh4 {[%clk 0:01:51.9]} 22. g4 {[%clk
0:02:07.8]} 22... a4 {[%clk 0:01:50.8]} 23. a3 {[%clk 0:02:07.1]} 23... Bd7
{[%clk 0:01:47.1]} 24. Rdg1 {[%clk 0:02:00.9]} 24... Bc6 {[%clk 0:01:46.8]} 25.
Bg5 {[%clk 0:02:00.3]} 25... Bh6 {[%clk 0:01:33]} 26. Bxh6 {[%clk 0:01:56.8]}
26... Bxh1 {[%clk 0:01:32.8]} 27. Bg5 {[%clk 0:01:50.2]} 27... Qxh3 {[%clk
0:01:31.8]} 28. Bf6+ {[%clk 0:01:49.9]} 28... Kh7 {[%clk 0:01:29.8]} 29. gxh5
{[%clk 0:01:46]} 29... Qxh5 {[%clk 0:01:28.6]} 30. Rg4 {[%clk 0:01:35.3]} 30...
Qxg4 {[%clk 0:01:14.3]} 31. Qh2+ {[%clk 0:01:34.9]} 1-0

[Event "*** Titled Tuesday Blitz"]
[Site "Chess.com"]
[Date "2020.04.28"]
[Round "2"]
[White "WiktoriaPOL"]
[Black "FranciscodelaF"]
[Result "0-1"]
[WhiteElo "2044"]
[BlackElo "2382"]
[TimeControl "180+1"]
[EndTime "10:15:30 PDT"]
[Termination "FranciscodelaF won by checkmate"]

1. c4 {[%clk 0:03:00.9]} 1... e6 {[%clk 0:02:58.7]} 2. Nc3 {[%clk 0:02:58.3]}
2... d5 {[%clk 0:02:59.6]} 3. d4 {[%clk 0:02:57.1]} 3... Nf6 {[%clk 0:02:59.6]}
4. cxd5 {[%clk 0:02:55.6]} 4... exd5 {[%clk 0:03:00.5]} 5. Bg5 {[%clk
0:02:55.6]} 5... Be7 {[%clk 0:03:00.2]} 6. e3 {[%clk 0:02:55.7]} 6... c6 {[%clk
0:03:00.3]} 7. Bd3 {[%clk 0:02:56.1]} 7... Nbd7 {[%clk 0:02:59.3]} 8. Qc2 {[%clk
0:02:56.4]} 8... h6 {[%clk 0:02:56.4]} 9. Bh4 {[%clk 0:02:55.7]} 9... O-O {[%clk
0:02:55.5]} 10. Nge2 {[%clk 0:02:55.1]} 10... Nh5 {[%clk 0:02:51.7]} 11. Bxe7
{[%clk 0:02:52.7]} 11... Qxe7 {[%clk 0:02:52.2]} 12. O-O {[%clk 0:02:51.3]}
12... a5 {[%clk 0:02:46.8]} 13. Rae1 {[%clk 0:02:49.1]} 13... g6 {[%clk
0:02:41.4]} 14. Bxg6 {[%clk 0:02:13.5]} 14... fxg6 {[%clk 0:02:42.3]} 15. Qxg6+
{[%clk 0:02:13]} 15... Ng7 {[%clk 0:02:41.8]} 16. Qxh6 {[%clk 0:02:12.9]} 16...
Nf6 {[%clk 0:02:31]} 17. Nf4 {[%clk 0:01:56.8]} 17... Ng4 {[%clk 0:02:27.4]} 18.
Qg6 {[%clk 0:01:49]} 18... Bf5 {[%clk 0:02:18.9]} 19. Ncxd5 {[%clk 0:01:03.9]}
19... cxd5 {[%clk 0:02:07.9]} 20. Nxd5 {[%clk 0:01:03]} 20... Qd7 {[%clk
0:01:25.6]} 21. Qg5 {[%clk 0:00:48.8]} 21... Qxd5 {[%clk 0:01:24.9]} 22. e4
{[%clk 0:00:49.4]} 22... Qd6 {[%clk 0:01:24]} 23. exf5 {[%clk 0:00:48.6]} 23...
Qxh2# {[%clk 0:01:23.7]} 0-1

[Event "*** Titled Tuesday Blitz"]
[Site "Chess.com"]
[Date "2020.04.28"]
[Round "2"]
[White "Tesla37"]
[Black "EddieMarsalla"]
[Result "1-0"]
[WhiteElo "2880"]
[BlackElo "2558"]
[TimeControl "180+1"]
[EndTime "10:15:31 PDT"]
[Termination "Tesla37 won by resignation"]

1. e4 {[%clk 0:03:00.9]} 1... c6 {[%clk 0:02:59.9]} 2. d4 {[%clk 0:03:00.2]}
2... d5 {[%clk 0:03:00.1]} 3. e5 {[%clk 0:03:00.8]} 3... Bf5 {[%clk 0:02:59.8]}
4. Nd2 {[%clk 0:03:00.9]} 4... e6 {[%clk 0:02:57.3]} 5. Nb3 {[%clk 0:03:00.8]}
5... Nd7 {[%clk 0:02:56.7]} 6. Be2 {[%clk 0:02:58.6]} 6... h6 {[%clk 0:02:55.8]}
7. Nf3 {[%clk 0:02:58.3]} 7... Ne7 {[%clk 0:02:54.1]} 8. O-O {[%clk 0:02:58.7]}
8... g5 {[%clk 0:02:54.3]} 9. a4 {[%clk 0:02:57.5]} 9... Bg7 {[%clk 0:02:52.3]}
10. a5 {[%clk 0:02:53.6]} 10... Ng6 {[%clk 0:02:49.8]} 11. Ne1 {[%clk
0:02:49.4]} 11... Nf4 {[%clk 0:02:33.6]} 12. Bxf4 {[%clk 0:02:43.2]} 12... gxf4
{[%clk 0:02:34.5]} 13. Bd3 {[%clk 0:02:43.4]} 13... Qg5 {[%clk 0:02:26.3]} 14.
Bxf5 {[%clk 0:02:33.4]} 14... Qxf5 {[%clk 0:02:25.9]} 15. Nd3 {[%clk 0:02:33.9]}
15... f3 {[%clk 0:02:20.1]} 16. Qxf3 {[%clk 0:02:29.3]} 16... Qxf3 {[%clk
0:02:19.6]} 17. gxf3 {[%clk 0:02:29.4]} 17... h5 {[%clk 0:02:10.7]} 18. f4
{[%clk 0:02:27.8]} 18... Bh6 {[%clk 0:02:07.8]} 19. Kg2 {[%clk 0:02:26.3]} 19...
O-O-O {[%clk 0:02:05.3]} 20. Kf3 {[%clk 0:02:26.2]} 20... f6 {[%clk 0:01:58.6]}
21. Rg1 {[%clk 0:02:20.4]} 21... fxe5 {[%clk 0:01:58.6]} 22. fxe5 {[%clk
0:02:19.4]} 22... Rdf8+ {[%clk 0:01:58.1]} 23. Ke2 {[%clk 0:02:19.9]} 23... Rf5
{[%clk 0:01:52]} 24. Rg6 {[%clk 0:02:08.8]} 24... Nf8 {[%clk 0:01:51.4]} 25. Rg3
{[%clk 0:02:07.8]} 25... h4 {[%clk 0:01:50.8]} 26. Rg4 {[%clk 0:02:06.6]} 26...
Bg5 {[%clk 0:01:48.1]} 27. Rag1 {[%clk 0:02:04.7]} 27... Bd8 {[%clk 0:01:45.3]}
28. f4 {[%clk 0:01:57.8]} 28... Rf7 {[%clk 0:01:25.4]} 29. Rg8 {[%clk
0:01:53.7]} 29... Rhh7 {[%clk 0:01:24.4]} 30. Ke3 {[%clk 0:01:47.9]} 30... b6
{[%clk 0:01:23.2]} 31. axb6 {[%clk 0:01:46.9]} 31... Bxb6 {[%clk 0:01:23.5]} 32.
Nbc5 {[%clk 0:01:44.2]} 32... Rh6 {[%clk 0:01:23.1]} 33. R1g7 {[%clk 0:01:40.7]}
33... Rxg7 {[%clk 0:01:21.3]} 34. Rxg7 {[%clk 0:01:40.9]} 34... Kd8 {[%clk
0:01:11.6]} 35. Nb7+ {[%clk 0:01:39.7]} 35... Ke8 {[%clk 0:01:09.4]} 36. Nd6+
{[%clk 0:01:38.9]} 1-0

[Event "*** Titled Tuesday Blitz"]
[Site "Chess.com"]
[Date "2020.04.28"]
[Round "2"]
[White "Kavyev_Ruslan"]
[Black "Rinas_Oleg"]
[Result "1-0"]
[WhiteElo "2504"]
[BlackElo "2265"]
[TimeControl "180+1"]
[EndTime "10:15:33 PDT"]
[Termination "Kavyev_Ruslan won by resignation"]

1. d4 {[%clk 0:02:48]} 1... Nf6 {[%clk 0:02:58.7]} 2. c4 {[%clk 0:02:48.4]} 2...
g6 {[%clk 0:02:57.4]} 3. Nc3 {[%clk 0:02:48.4]} 3... d5 {[%clk 0:02:56.4]} 4.
Bf4 {[%clk 0:02:48.1]} 4... Bg7 {[%clk 0:02:54.3]} 5. e3 {[%clk 0:02:48.6]} 5...
O-O {[%clk 0:02:51.2]} 6. Rc1 {[%clk 0:02:48]} 6... c5 {[%clk 0:02:47.5]} 7.
dxc5 {[%clk 0:02:48.9]} 7... Qa5 {[%clk 0:02:46.2]} 8. cxd5 {[%clk 0:02:47.8]}
8... Rd8 {[%clk 0:02:43.1]} 9. Bc4 {[%clk 0:02:47.2]} 9... Qxc5 {[%clk
0:02:33.6]} 10. Bb3 {[%clk 0:02:41.1]} 10... e6 {[%clk 0:02:10.7]} 11. Nge2
{[%clk 0:02:39.5]} 11... exd5 {[%clk 0:02:08.5]} 12. O-O {[%clk 0:02:39]} 12...
Nc6 {[%clk 0:02:05.7]} 13. Nxd5 {[%clk 0:02:36.2]} 13... Qa5 {[%clk 0:01:40.7]}
14. Bc7 {[%clk 0:02:17.6]} 14... Rxd5 {[%clk 0:01:39]} 15. Bxa5 {[%clk
0:02:17.2]} 15... Rxd1 {[%clk 0:01:37.6]} 16. Rfxd1 {[%clk 0:02:18.1]} 16...
Nxa5 {[%clk 0:01:35.6]} 17. Rd8+ {[%clk 0:02:18.3]} 17... Bf8 {[%clk 0:01:35]}
18. Rcxc8 {[%clk 0:02:18.8]} 18... Rxc8 {[%clk 0:01:34.1]} 19. Rxc8 {[%clk
0:02:19.7]} 19... Nxb3 {[%clk 0:01:33.4]} 20. axb3 {[%clk 0:02:19.3]} 20... Kg7
{[%clk 0:01:33]} 21. Rc7 {[%clk 0:02:17.6]} 21... a5 {[%clk 0:01:22.3]} 22. Rxb7
{[%clk 0:02:16.9]} 22... Ne4 {[%clk 0:01:17.2]} 23. Nd4 {[%clk 0:02:09.4]} 23...
Bb4 {[%clk 0:01:13.2]} 24. Nc6 {[%clk 0:02:09.1]} 24... Nc5 {[%clk 0:01:06.4]}
25. Rb5 {[%clk 0:02:06.3]} 25... Nxb3 {[%clk 0:01:00.3]} 26. Nxb4 {[%clk
0:02:04.9]} 26... axb4 {[%clk 0:00:59.8]} 27. Rxb4 {[%clk 0:02:05.8]} 27... Nc5
{[%clk 0:00:58.8]} 28. Rc4 {[%clk 0:02:04.5]} 28... Nd3 {[%clk 0:00:56.3]} 29.
b4 {[%clk 0:02:04.9]} 29... Kf6 {[%clk 0:00:56]} 30. b5 {[%clk 0:02:04.7]} 30...
Ne5 {[%clk 0:00:55.1]} 31. Rc1 {[%clk 0:02:00.8]} 31... Nd7 {[%clk 0:00:48.1]}
32. b6 {[%clk 0:01:58.5]} 32... Ke5 {[%clk 0:00:46.1]} 33. b7 {[%clk 0:01:58.7]}
1-0

[Event "*** Titled Tuesday Blitz"]
[Site "Chess.com"]
[Date "2020.04.28"]
[Round "2"]
[White "AniJak"]
[Black "Pittiplatsh"]
[Result "0-1"]
[WhiteElo "2239"]
[BlackElo "2465"]
[TimeControl "180+1"]
[EndTime "10:15:34 PDT"]
[Termination "Pittiplatsh won by resignation"]

1. e4 {[%clk 0:03:00.6]} 1... c5 {[%clk 0:02:59.1]} 2. Nc3 {[%clk 0:02:57.9]}
2... Nc6 {[%clk 0:02:57.7]} 3. g3 {[%clk 0:02:58.8]} 3... g6 {[%clk 0:02:57.3]}
4. Bg2 {[%clk 0:02:58.6]} 4... Bg7 {[%clk 0:02:57.9]} 5. d3 {[%clk 0:02:57.8]}
5... d6 {[%clk 0:02:58.2]} 6. Be3 {[%clk 0:02:57.5]} 6... e5 {[%clk 0:02:57.5]}
7. Qd2 {[%clk 0:02:57.4]} 7... Nge7 {[%clk 0:02:57.5]} 8. Nge2 {[%clk
0:02:54.4]} 8... Rb8 {[%clk 0:02:54]} 9. Bh6 {[%clk 0:02:53.1]} 9... Bxh6 {[%clk
0:02:35.2]} 10. Qxh6 {[%clk 0:02:51.8]} 10... Nd4 {[%clk 0:02:35.9]} 11. Nxd4
{[%clk 0:02:38.1]} 11... cxd4 {[%clk 0:02:35.6]} 12. Nd5 {[%clk 0:02:39]} 12...
Nxd5 {[%clk 0:02:32.6]} 13. exd5 {[%clk 0:02:38.5]} 13... Qa5+ {[%clk
0:02:31.6]} 14. Qd2 {[%clk 0:02:34.7]} 14... Qxd2+ {[%clk 0:02:30.2]} 15. Kxd2
{[%clk 0:02:35.6]} 15... Ke7 {[%clk 0:02:15.2]} 16. Rae1 {[%clk 0:02:34.7]}
16... f5 {[%clk 0:02:12.5]} 17. c4 {[%clk 0:02:28.9]} 17... dxc3+ {[%clk
0:02:02.7]} 18. bxc3 {[%clk 0:02:29.8]} 18... Kf6 {[%clk 0:02:03.1]} 19. Kc2
{[%clk 0:02:23]} 19... Bd7 {[%clk 0:02:02.8]} 20. Rb1 {[%clk 0:02:21.7]} 20...
Rhc8 {[%clk 0:02:02.2]} 21. Rb4 {[%clk 0:02:19.8]} 21... b5 {[%clk 0:02:00.4]}
22. Rhb1 {[%clk 0:02:18.7]} 22... a5 {[%clk 0:01:59.9]} 23. R4b3 {[%clk
0:02:13.8]} 23... b4 {[%clk 0:01:59.1]} 24. c4 {[%clk 0:02:07.1]} 24... Ba4
{[%clk 0:01:58.4]} 25. Kd2 {[%clk 0:02:02.1]} 25... Bxb3 {[%clk 0:01:58.2]} 26.
axb3 {[%clk 0:02:02.5]} 26... h5 {[%clk 0:01:49.2]} 27. Ra1 {[%clk 0:02:01.6]}
27... Ra8 {[%clk 0:01:47.4]} 28. Ra4 {[%clk 0:01:59]} 28... g5 {[%clk
0:01:46.8]} 29. Ra1 {[%clk 0:01:57.7]} 29... g4 {[%clk 0:01:46.7]} 30. f3 {[%clk
0:01:54.3]} 30... Kg5 {[%clk 0:01:43.2]} 31. Ra2 {[%clk 0:01:44.2]} 31... Rh8
{[%clk 0:01:40.5]} 32. Ke3 {[%clk 0:01:41.8]} 32... gxf3 {[%clk 0:01:39.6]} 33.
Bxf3 {[%clk 0:01:41]} 33... h4 {[%clk 0:01:39.9]} 34. g4 {[%clk 0:01:38.1]}
34... fxg4 {[%clk 0:01:35.7]} 35. Rg2 {[%clk 0:01:36.9]} 35... g3 {[%clk
0:01:34]} 36. hxg3 {[%clk 0:01:36.4]} 36... h3 {[%clk 0:01:34.1]} 37. Rh2 {[%clk
0:01:36.3]} 37... a4 {[%clk 0:01:33.7]} 38. bxa4 {[%clk 0:01:35.4]} 38... Rxa4
{[%clk 0:01:33.3]} 39. Be4 {[%clk 0:01:31]} 39... b3 {[%clk 0:01:26.1]} 0-1

[Event "*** Titled Tuesday Blitz"]
[Site "Chess.com"]
[Date "2020.04.28"]
[Round "2"]
[White "FMOlexandrProhorov"]
[Black "vpsetter"]
[Result "0-1"]
[WhiteElo "2091"]
[BlackElo "2605"]
[TimeControl "180+1"]
[EndTime "10:15:36 PDT"]
[Termination "vpsetter won by resignation"]

1. e4 {[%clk 0:03:00.9]} 1... e5 {[%clk 0:02:59]} 2. Nf3 {[%clk 0:02:52.7]} 2...
Nc6 {[%clk 0:02:59.1]} 3. Bc4 {[%clk 0:02:51.6]} 3... Bc5 {[%clk 0:02:58.7]} 4.
b4 {[%clk 0:02:50.8]} 4... Bxb4 {[%clk 0:02:53.8]} 5. c3 {[%clk 0:02:50.8]} 5...
Ba5 {[%clk 0:02:50.6]} 6. d4 {[%clk 0:02:49.5]} 6... d6 {[%clk 0:02:48.8]} 7.
dxe5 {[%clk 0:02:46.4]} 7... dxe5 {[%clk 0:02:33]} 8. Qxd8+ {[%clk 0:02:41.1]}
8... Nxd8 {[%clk 0:02:32.1]} 9. Nxe5 {[%clk 0:02:40.7]} 9... Nf6 {[%clk
0:02:28.6]} 10. f3 {[%clk 0:02:39.4]} 10... O-O {[%clk 0:02:17]} 11. O-O {[%clk
0:02:39]} 11... Re8 {[%clk 0:02:16.2]} 12. Nd3 {[%clk 0:02:32.3]} 12... Be6
{[%clk 0:02:08.4]} 13. Bxe6 {[%clk 0:02:29.1]} 13... Nxe6 {[%clk 0:02:08.9]} 14.
Be3 {[%clk 0:02:24.4]} 14... Rad8 {[%clk 0:01:59.1]} 15. Nb4 {[%clk 0:02:17]}
15... c5 {[%clk 0:01:54.9]} 16. Nc2 {[%clk 0:02:12.5]} 16... Rd3 {[%clk
0:01:54.5]} 17. Re1 {[%clk 0:01:54.7]} 17... Nd4 {[%clk 0:01:12.8]} 18. Bxd4
{[%clk 0:01:44.3]} 18... cxd4 {[%clk 0:01:11.9]} 19. cxd4 {[%clk 0:01:22.3]}
19... Bxe1 {[%clk 0:01:11.1]} 20. Nxe1 {[%clk 0:01:22]} 20... Rd1 {[%clk
0:01:08.8]} 21. Kf2 {[%clk 0:01:20.7]} 21... Rc8 {[%clk 0:01:08.7]} 22. Na3
{[%clk 0:01:19.2]} 22... Rxa1 {[%clk 0:01:07.7]} 0-1

[Event "*** Titled Tuesday Blitz"]
[Site "Chess.com"]
[Date "2020.04.28"]
[Round "2"]
[White "agus_k"]
[Black "manmanlai1"]
[Result "1-0"]
[WhiteElo "2605"]
[BlackElo "2300"]
[TimeControl "180+1"]
[EndTime "10:15:37 PDT"]
[Termination "agus_k won by resignation"]

1. e4 {[%clk 0:03:00.9]} 1... c6 {[%clk 0:02:59.7]} 2. d4 {[%clk 0:03:00.2]}
2... d5 {[%clk 0:03:00.2]} 3. Nd2 {[%clk 0:03:00.5]} 3... dxe4 {[%clk
0:02:59.8]} 4. Nxe4 {[%clk 0:03:01.4]} 4... Nf6 {[%clk 0:03:00]} 5. Nxf6+ {[%clk
0:03:00.4]} 5... exf6 {[%clk 0:03:00.9]} 6. Bd3 {[%clk 0:02:59]} 6... Bd6 {[%clk
0:03:00.7]} 7. c3 {[%clk 0:02:57.6]} 7... O-O {[%clk 0:02:58.2]} 8. Qc2 {[%clk
0:02:57.5]} 8... Re8+ {[%clk 0:02:54.4]} 9. Ne2 {[%clk 0:02:58.4]} 9... h5
{[%clk 0:02:53.1]} 10. Be3 {[%clk 0:02:51.1]} 10... Nd7 {[%clk 0:02:51.5]} 11.
O-O-O {[%clk 0:02:50.7]} 11... Qa5 {[%clk 0:02:46.6]} 12. Kb1 {[%clk 0:02:48.8]}
12... b5 {[%clk 0:02:37.8]} 13. g4 {[%clk 0:02:39.3]} 13... h4 {[%clk
0:02:36.1]} 14. g5 {[%clk 0:02:32.6]} 14... b4 {[%clk 0:02:22.3]} 15. gxf6
{[%clk 0:02:25.6]} 15... bxc3 {[%clk 0:02:15.4]} 16. Bh7+ {[%clk 0:02:22]} 16...
Kh8 {[%clk 0:02:13.4]} 17. fxg7+ {[%clk 0:02:21.2]} 17... Kxg7 {[%clk
0:02:13.6]} 18. Rhg1+ {[%clk 0:02:21]} 18... Kh8 {[%clk 0:02:13.8]} 19. Bh6
{[%clk 0:02:19.6]} 19... f5 {[%clk 0:01:45]} 20. Bxf5 {[%clk 0:02:05.1]} 20...
Re7 {[%clk 0:01:29.1]} 21. Be6 {[%clk 0:01:52.7]} 21... Rxe6 {[%clk 0:01:00.6]}
22. Bg7+ {[%clk 0:01:50.8]} 22... Kg8 {[%clk 0:01:00.8]} 23. d5 {[%clk
0:01:22.4]} 23... cxd5 {[%clk 0:00:50.4]} 24. Bxc3+ {[%clk 0:01:19.9]} 1-0

[Event "*** Titled Tuesday Blitz"]
[Site "Chess.com"]
[Date "2020.04.28"]
[Round "2"]
[White "Piotrek1979"]
[Black "SergioGarciaFuentes"]
[Result "1-0"]
[WhiteElo "2387"]
[BlackElo "2068"]
[TimeControl "180+1"]
[EndTime "10:15:37 PDT"]
[Termination "Piotrek1979 won by resignation"]

1. Nf3 {[%clk 0:03:00.9]} 1... d5 {[%clk 0:02:56.9]} 2. g3 {[%clk 0:03:01.8]}
2... Nf6 {[%clk 0:02:56.1]} 3. Bg2 {[%clk 0:03:02.7]} 3... g6 {[%clk 0:02:56]}
4. b3 {[%clk 0:03:01.4]} 4... Bg7 {[%clk 0:02:55.3]} 5. Bb2 {[%clk 0:03:02.1]}
5... O-O {[%clk 0:02:55.8]} 6. O-O {[%clk 0:03:02.3]} 6... c5 {[%clk 0:02:48.2]}
7. e3 {[%clk 0:03:02.4]} 7... Nc6 {[%clk 0:02:47.2]} 8. d3 {[%clk 0:03:01.4]}
8... Qc7 {[%clk 0:02:38.3]} 9. a3 {[%clk 0:03:00.8]} 9... Re8 {[%clk 0:02:31.5]}
10. c4 {[%clk 0:03:00.2]} 10... e6 {[%clk 0:01:45.2]} 11. Nbd2 {[%clk
0:02:57.9]} 11... b6 {[%clk 0:01:42.4]} 12. Qc1 {[%clk 0:02:57.9]} 12... Bb7
{[%clk 0:01:38.5]} 13. Qc2 {[%clk 0:02:58.3]} 13... e5 {[%clk 0:01:21.5]} 14.
cxd5 {[%clk 0:02:57.3]} 14... Nxd5 {[%clk 0:01:20.8]} 15. Rac1 {[%clk
0:02:55.2]} 15... Rac8 {[%clk 0:01:19.9]} 16. Rfe1 {[%clk 0:02:54]} 16... Qd7
{[%clk 0:01:06.3]} 17. Nc4 {[%clk 0:02:50.6]} 17... f6 {[%clk 0:00:48]} 18. Qb1
{[%clk 0:02:48.9]} 18... Kh8 {[%clk 0:00:47.4]} 19. Red1 {[%clk 0:02:48.6]}
19... Qe6 {[%clk 0:00:38.1]} 20. Ncd2 {[%clk 0:02:43.6]} 20... Red8 {[%clk
0:00:35.6]} 21. Qa1 {[%clk 0:02:40.8]} 21... Nc7 {[%clk 0:00:32.2]} 22. Ne4
{[%clk 0:02:30.6]} 22... Qxb3 {[%clk 0:00:31]} 23. Nxf6 {[%clk 0:02:12.6]} 23...
Bxf6 {[%clk 0:00:28.3]} 24. Nxe5 {[%clk 0:02:12.7]} 24... Nxe5 {[%clk
0:00:20.4]} 25. Bxe5 {[%clk 0:02:09.7]} 25... Bxe5 {[%clk 0:00:11.2]} 26. Qxe5+
{[%clk 0:02:10.6]} 26... Kg8 {[%clk 0:00:10.4]} 27. Bxb7 {[%clk 0:02:11.3]} 1-0

[Event "*** Titled Tuesday Blitz"]
[Site "Chess.com"]
[Date "2020.04.28"]
[Round "2"]
[White "LogoCzar"]
[Black "CraiggoryC"]
[Result "1-0"]
[WhiteElo "2384"]
[BlackElo "2062"]
[TimeControl "180+1"]
[EndTime "10:15:43 PDT"]
[Termination "LogoCzar won on time"]

1. e4 {[%clk 0:03:00.9]} 1... e6 {[%clk 0:02:57.9]} 2. d4 {[%clk 0:03:00.7]}
2... d5 {[%clk 0:02:58.2]} 3. Nc3 {[%clk 0:03:01.1]} 3... Bb4 {[%clk 0:02:51.4]}
4. e5 {[%clk 0:03:01.3]} 4... c5 {[%clk 0:02:51.1]} 5. a3 {[%clk 0:03:01.8]}
5... Bxc3+ {[%clk 0:02:51.1]} 6. bxc3 {[%clk 0:03:02.7]} 6... Ne7 {[%clk
0:02:51]} 7. Qg4 {[%clk 0:03:03.1]} 7... cxd4 {[%clk 0:02:51.5]} 8. Bd3 {[%clk
0:03:01.5]} 8... Qa5 {[%clk 0:02:50.1]} 9. Ne2 {[%clk 0:02:59.9]} 9... dxc3
{[%clk 0:02:21.9]} 10. Qxg7 {[%clk 0:02:59.3]} 10... Rg8 {[%clk 0:02:14.7]} 11.
Qxh7 {[%clk 0:02:59.5]} 11... Nbc6 {[%clk 0:02:03.7]} 12. Bf4 {[%clk 0:02:56.8]}
12... Bd7 {[%clk 0:01:43.2]} 13. h4 {[%clk 0:02:56.2]} 13... O-O-O {[%clk
0:01:41.2]} 14. Qxf7 {[%clk 0:02:45.4]} 14... Rdf8 {[%clk 0:00:57]} 15. Qh5
{[%clk 0:02:43.1]} 15... Rxg2 {[%clk 0:00:35.5]} 16. Bg3 {[%clk 0:02:33.6]}
16... Nf5 {[%clk 0:00:16.9]} 17. Qf3 {[%clk 0:02:14.3]} 17... Rxg3 {[%clk
0:00:08.6]} 18. Nxg3 {[%clk 0:02:13.4]} 18... Ncd4 {[%clk 0:00:07.1]} 19. Qf4
{[%clk 0:02:01.7]} 19... Qa4 {[%clk 0:00:04.3]} 20. O-O {[%clk 0:01:47.7]} 1-0